Cogmind - Beta 14 @@@ ROGUE MODE // 2024.08.19 @ 17:55:23 Player: Dosh Result: Destroyed by 9U-VR1(R) with Subdweller Machine Gun Performance ------------- Evolutions (0) 0 Regions Visited (2) 400 Robots Destroyed (32) 160 Value Destroyed (854) 854 Prototype IDs (2) 40 Alien Tech Used (0) 0 Bonus (0) 0 TOTAL SCORE: 1454 Bonus ------- None Cogmind --------- Core Integrity 0/250 Matter 277/300 Energy 199/200 System Corruption 0% Temperature Cool (0) Movement Rolling (120) Ox1 Location -10/Subcaves Parts ------- > --- POWER (1) -------- Subdweller Power Source > --- PROPULSION (2) --- Subdweller Monowheel Subdweller Monowheel > --- UTILITY (2) ------ High-capacity Storage Unit Light Armor Plating > --- WEAPON (2) ------- Assault Rifle Subdweller Shrapnel Launcher > --- INVENTORY (20) --- Large Storage Unit Cargo Storage Unit Machine Analyzer Recalibrator Light Assault Rifle Light Assault Rifle Subdweller Machine Gun Light Cannon Battle Cannon Grenade Launcher Peak State ------------ > --- POWER ------------ Ion Engine > --- PROPULSION ------- Light Treads Subdweller Monowheel > --- UTILITY ---------- High-capacity Storage Unit Light Armor Plating > --- WEAPON ----------- Subdweller Machine Gun Subdweller Machine Gun > --- INVENTORY -------- Large Storage Unit Cargo Storage Unit Machine Analyzer Light Armor Plating Recalibrator Assault Rifle Light Assault Rifle Light Assault Rifle Subdweller Machine Gun Light Cannon Battle Cannon Grenade Launcher Subdweller Shrapnel Launcher [Rating: 12] Favorites ----------- Power Light Ion Engine Engine Light Ion Engine Propulsion Light Treads Treads Light Treads Wheel Subdweller Monowheel Utility Light Armor Plating Storage High-capacity Storage Unit Protection Light Armor Plating Weapon Subdweller Machine Gun Ballistic Gun Subdweller Machine Gun Ballistic Cannon Light Cannon Launcher Subdweller Shrapnel Launcher Build | -11 -10 -10 ------- Run | Yrd Mat Sub Slots Evolved . | . . . Power . | . . . Propulsion . | . . . Utility . | . . . Weapon . | . . . Parts Attached 34 | 6 8 20 Power 3 | 1 . 2 Engine 3 | 1 . 2 Core . | . . . Reactor . | . . . Propulsion 6 | 2 1 3 Treads 4 | 2 1 1 Leg . | . . . Wheel 2 | . . 2 Hover . | . . . Flight . | . . . Utility 8 | 1 4 3 Device . | . . . Storage 3 | 1 2 . Processor . | . . . Hackware . | . . . Protection 5 | . 2 3 Artifact . | . . . Weapon 17 | 2 3 12 Energy Gun . | . . . Energy Cannon . | . . . Ballistic Gun 11 | 2 2 7 Ballistic Cannon 4 | . 1 3 Launcher 2 | . . 2 Special Weapon . | . . . Impact Weapon . | . . . Slashing Weapon . | . . . Piercing Weapon . | . . . Special Melee Weapon . | . . . Unidentified Prototypes . | . . . Parts Lost 11 | . . 11 Power 2 | . . 2 Propulsion 3 | . . 3 Utility 3 | . . 3 Weapon 3 | . . 3 Highest Loss Streak 5 | . . 5 To Critical Strikes . | . . . Average Slot Usage (%) 98 | . 98 97 Engine 13 | . 14 13 Treads 23 | . 27 21 Wheel 4 | . . 6 Storage 14 | . 14 14 Protection 13 | . 13 13 Ballistic Gun 20 | . 18 22 Ballistic Cannon 6 | . 9 5 Peak Build Rating 12 | 6 8 12 Average Rating 9 | 5 7 10 On Entrance 4 | . 6 8 Naked Turns . | . . . Heaviest Build 58 | 10 51 58 Greatest Support 40 | 40 40 40 Greatest Overweight (x) 2 | . 1 2 Average Overweight (x) . | . . 1 Largest Inventory Capacity 20 | 8 20 20 Average Capacity 17 | 6 13 20 Most Carried 17 | 1 14 17 Average Carried 12 | . 9 14 Final Capacity 20 | 8 20 20 Final Carried 14 | 1 14 11 Class Distribution -------------------- 84% | Mutant 15% | Scavenger-Mutant Dominant Class ---------------- Mutant | -10/Materials Mutant | -10/Subcaves Resources | -11 -10 -10 ----------- Run | Yrd Mat Sub Matter Collected 1202 | 214 402 586 Remotely . | . . . Salvage Created 919 | . 489 430 Parts 58 | . 27 31 Haulers Intercepted 2 | . 2 . Recyclers Shooed 1 | . 1 . Parts Field Recycled . | . . . Retrieved Matter . | . . . Parts Self-Destructed 7 | . . 7 Prevented . | . . . Kills | -11 -10 -10 ------- Run | Yrd Mat Sub Combat Hostiles Destroyed 26 | . 10 16 Guns 17 | . 9 8 Cannons 5 | . 1 4 AOE 4 | . . 4 Classes Destroyed 7 | . 6 1 Hauler 2 | . 2 . Recycler 1 | . 1 . Mechanic 1 | . 1 . Watcher 2 | . 2 . Swarmer 8 | . 6 2 Grunt 4 | . 4 . Subdweller 14 | . . 14 Best Kill Streak 4 | . 4 3 Combat Bots Only 4 | . 4 3 Max Kills in Single Turn 1 | . 1 1 Gunslinging . | . . . Exploded 1 | . . 1 Melee . | . . . Uniques/NPCs Destroyed . | . . . Combat | -11 -10 -10 -------- Run | Yrd Mat Sub Hostile Shots Fired 144 | . 49 95 Missed 32 | . 10 22 Damage Taken 2116 | . 475 1641 Core 252 | . 86 166 Absorbed by Shields . | . . . Regen/Repaired (Parts) 87 | . 87 . Core Remaining (%) 100 | 100 . . Volleys Fired 135 | . 54 81 Largest 2 | . 2 2 Hottest 70 | . 55 70 Shots Fired 253 | . 108 145 Gun 192 | . 87 105 Cannon 54 | . 21 33 Launcher 7 | . . 7 Special . | . . . Kinetic 250 | . 108 142 Thermal . | . . . Explosive 3 | . . 3 Electromagnetic . | . . . Robot Hit Streak 11 | . 11 11 Robot Miss Streak 7 | . 7 4 Penetration Max . | . . . Secondary Targets 2 | . . 2 Max Gunslinging Chain 1 | . . 1 Shots Hit Robots 123 | . 61 62 Core Hits 56 | . 25 31 Critical Kills . | . . . Critical Parts Destroyed 2 | . 1 1 Critical Strikes 4 | . 2 2 Destroy 3 | . 1 2 Blast 1 | . 1 . Melee Attacks . | . . . Impact . | . . . Slashing . | . . . Piercing . | . . . Sneak Attacks . | . . . Combat Hostiles . | . . . Follow-up Attacks . | . . . Damage Inflicted 2293 | . 747 1546 Guns 1535 | . 576 959 Cannons 456 | . 139 317 Explosions 270 | . . 270 Melee . | . . . Ramming 32 | . 32 . Kinetic 2165 | . 715 1450 Thermal . | . . . Explosive 96 | . . 96 Electromagnetic . | . . . Impact . | . . . Slashing . | . . . Piercing . | . . . Highest Corruption . | . . . Average Corruption . | . . . Corruption Purged . | . . . Corruption Blocked . | . . . Overload Shots . | . . . Overflow Damage . | . . . Projectiles . | . . . Explosions . | . . . Melee . | . . . Knockbacks 3 | . 2 1 Impact 1 | . 1 . Kinetic 2 | . 1 1 Secondary . | . . . Self-Inflicted Damage 114 | . . 114 Shots 2 | . . 2 Rammed 4 | . 4 . Targets Rammed 4 | . 4 . Kicked . | . . . Crushed . | . . . Highest Temperature 96 | . 96 . Average Temperature 18 | . 18 . Received Heat Transfer 363 | . 171 192 Siege Activations . | . . . Robots Corrupted . | . . . Combat Hostiles . | . . . Parts Fried . | . . . Impact Corruptions . | . . . Robots Melted . | . . . Combat Hostiles . | . . . Parts Melted . | . . . Heat Transferred . | . . . Parts Sabotaged . | . . . Parts Stolen . | . . . Parts Stripped . | . . . Power Chain Reactions . | . . . Alert | -11 -10 -10 ------- Run | Yrd Mat Sub Peak Influence 262 | . 262 . Initial . | . . . Average 94 | . 99 . Maximum Alert Level 1 | . 1 . Low Security (%) 98 | 100 98 . Level 1 1 | . 1 . Level 2 . | . . . Level 3 . | . . . Level 4 . | . . . Level 5 . | . . . High Security . | . . . Max Security . | . . . Squads Dispatched 1 | . 1 . Investigation . | . . . Extermination . | . . . Reinforcement 1 | . 1 . Assault . | . . . Garrison . | . . . Intercept . | . . . Searches Triggered . | . . . Construction Impeded . | . . . Haulers Reinforced . | . . . Active Scanning Responses . | . . . Cargo Convoy Interrupts . | . . . Stealth | -11 -10 -10 --------- Run | Yrd Mat Sub Distress Signals . | . . . Communications Jammed . | . . . Distress Signals . | . . . Times Spotted 43 | . 26 17 Peak Tracking Total 5 | . 5 3 Tactical Retreats 8 | . 8 . Traps | -11 -10 -10 ------- Run | Yrd Mat Sub Traps Triggered 2 | . 1 1 Indirectly . | . . . Trap Hack Attempts . | . . . Triggered . | . . . Disarmed . | . . . Reprogrammed . | . . . Reused . | . . . Traps Extracted . | . . . Installed . | . . . Triggered . | . . . Machines | -11 -10 -10 ---------- Run | Yrd Mat Sub Machines Disabled 1 | . 1 . Max in Single Turn 1 | . 1 . Machines Repaired . | . . . Machines Dismantled . | . . . Machines Sabotaged . | . . . Overloaded Fab Kills . | . . . Hacking | -11 -10 -10 --------- Run | Yrd Mat Sub Machines Accessed 9 | . 7 2 Terminals 6 | . 6 . Fabricators . | . . . Repair Stations 1 | . 1 . Recycling Units . | . . . Scanalyzers . | . . . Garrison Access . | . . . Total Hacks 22 | . 17 5 Successful 14 | . 9 5 Failed 8 | . 8 . Catastrophic 2 | . 2 . Database Lockouts . | . . . Manual 13 | . 13 . Terminals 15 | . 15 . Fabricators . | . . . Repair Stations 2 | . 2 . Recycling Units . | . . . Scanalyzers . | . . . Garrison Access . | . . . Terminal Hacks 9 | . 4 5 Record 4 | . . 4 Robot Schematic 1 | . 1 . Robot Analysis 1 | . 1 . Prototype ID Bank 1 | . 1 . Open Door 1 | . . 1 Zone Layout 1 | . 1 . Fabricator Hacks . | . . . Repair Station Hacks 2 | . 2 . Scan Component 1 | . 1 . Repair 1 | . 1 . Recycling Unit Hacks . | . . . Scanalyzer . | . . . Garrison Access Hacks . | . . . Unauthorized Hacks 3 | . 3 . Terminals 3 | . 3 . Skim 3 | . 3 . Fabricators . | . . . Repair Stations . | . . . Recycling Units . | . . . Scanalyzers . | . . . Garrison Access . | . . . Data Cores Recovered . | . . . Used . | . . . Hacking Detections 6 | . 6 . Full Trace Events . | . . . Feedback Events . | . . . Feedback Blocked . | . . . Robot Schematics Acquired 1 | . 1 . Robots Built . | . . . Authchips . | . . . Time . | . . . Total Robot Build Rating . | . . . Part Schematics Acquired . | . . . Parts Built . | . . . Authchips . | . . . Time . | . . . Total Part Build Rating . | . . . Parts Repaired 1 | . 1 . Time 26 | . 26 . Parts Recycled . | . . . Recycled Matter . | . . . Retrieved Matter . | . . . Retrieved Components . | . . . Parts Scanalyzed . | . . . Part Schematics Acquired . | . . . Parts Damaged . | . . . Bothacking | -11 -10 -10 ------------ Run | Yrd Mat Sub Used RIF Installer . | . . . Robots Hacked . | . . . Non-combat . | . . . Combat . | . . . Robot Hacks Applied . | . . . Relay Couplers Released . | . . . Fabnet Peak Effective % . | . . . Robots Rewired . | . . . Allies Hacked . | . . . Hacks Repelled . | . . . Allies | -11 -10 -10 -------- Run | Yrd Mat Sub Total Allies . | . . . Largest Group . | . . . Highest-Rated Group . | . . . Highest-Rated Ally . | . . . Total Orders . | . . . Ally Attacks . | . . . Total Damage . | . . . Kills . | . . . Allies Corrupted . | . . . Allies Melted . | . . . Intel | -11 -10 -10 ------- Run | Yrd Mat Sub Robot Analysis Total 1 | . 1 . Derelict Logs Recovered 2 | . . 2 Drone Launches . | . . . Drone Recoveries . | . . . Exploration | -11 -10 -10 ------------- Run | Yrd Mat Sub Turns Passed 4536 | 76 1540 2920 Spaces Moved 1660 | 45 675 940 Core 4 | 4 . . Treads 1510 | 41 675 794 Legs . | . . . Wheels 146 | . . 146 Hover . | . . . Flight . | . . . Fastest Speed 50 | 50 160 120 Average Speed 222 | 150 191 247 Slowest Speed 320 | 160 240 320 Overloaded Moves . | . . . Propulsion Burnouts . | . . . Robots Hopped . | . . . Cave-ins Triggered . | . . . Exploration Rate (%) 57 | 5 97 69 Regions Visited 2 Branch Regions 1 Pre-discovered Areas 1 | . . 1 Known Exits Taken . | . . . Unknown Exits Taken 2 | 1 1 . Scrap Searched 6 | . . 6 Spaces Dug . | . . . Terrain Destroyed 82 | . . 82 Melee . | . . . Projectile 1 | . . 1 AOE 81 | . . 81 Terrain Rammed . | . . . Walls Destroyed . | . . . Machines Disabled . | . . . Actions | -11 -10 -10 --------- Run | Yrd Mat Sub Total 2251 | 51 816 1384 Wait 396 | . 60 336 Move 1658 | 44 674 940 Hop . | . . . Pick Up 16 | 1 11 4 Fast Attach 13 | 6 3 4 Attach 8 | . . 8 Detach 1 | . . 1 Swap 13 | . 5 8 Drop 7 | . 5 2 Fire 135 | . 54 81 Melee . | . . . Ram . | . . . Kick . | . . . Crush 4 | . 4 . Escape Stasis . | . . . Rewire . | . . . Trap . | . . . Miscellaneous . | . . . Route ------- -11/Scrapyard -10/Materials (discovered 6 exits: [*Mat x3] / [*Min x2] / *Sub) -10/Subcaves (discovered 2 exits: *Mat x2) History --------- Turn | Location | Event 6 | -11/Scrapyard | Discovered new exit (range 16) 77 | -11/Scrapyard | Entered Materials 309 | -10/Materials | Build established: Mutant 417 | -10/Materials | Discovered new exit (range 3) 511 | -10/Materials | Discovered new exit (range 15) 577 | -10/Materials | Discovered new exit (range 15) 745 | -10/Materials | Discovered new exit (range 8) 1205 | -10/Materials | Discovered new exit (range 16) 1434 | -10/Materials | Discovered new exit (range 6) 1558 | -10/Materials | Repaired Lgt. Treads 1617 | -10/Materials | Entered Subcaves 2398 | -10/Subcaves | Identified exit to Materials 2631 | -10/Subcaves | Discovered exit to Materials (range 15) 3048 | -10/Subcaves | Shifting Twisted Machinery released Sub. Shrapnel Launcher 3073 | -10/Subcaves | Shifting Twisted Machinery released Battle Cannon 3303 | -10/Subcaves | Core integrity fell below 50% 3762 | -10/Subcaves | Learned location of Recycling (-9) 3899 | -10/Subcaves | Build established: Scavenger-Mutant 3918 | -10/Subcaves | A swath of the cavern ceiling suddenly collapsed 4326 | -10/Subcaves | Core integrity fell below 20% 4354 | -10/Subcaves | Visited Clippyterm 4358 | -10/Subcaves | Learned Factory garrison access intel 4368 | -10/Subcaves | Lost 5 parts (1p1u3w) 4536 | -10/Subcaves | Disturbed a concealed Subdweller 4537 | -10/Subcaves | Destroyed by 9U-VR1(R) with Subdweller Machine Gun Last Messages --------------- 04451_ Found 34 Matter. 04452_ Acquired 5 matter. 04454_ Searching scrap... 04454_ Found Sub. Monowheel. 04454_ Found 62 Matter. 04455_ Searching scrap... 04455_ Found Sub. Laser. 04455_ Found Shrapnel Trap. 04455_ Found 67 Matter. 04463_ Acquired Sub. Monowheel. 04467_ Acquired 10 matter. 04469_ Acquired Sub. Power Source. 04471_ Acquired 10 matter. 04473_ Acquired 2 matter. 04536_ 9U-VR1(R) angrily emerges from the Twisted Machinery. 04536_ Searching scrap... 04536_ Found Sub. Power Source. 04536_ Found Sub. Optics. 04536_ Found 37 Matter. 04537_ Acquired 8 matter. Map ----- +----------------------------------------------------+ | | | | | | | | | | | | | | | | | | | | | ?????????????????????????????????????????????????? | | ?????????????????????????????????????????????????? | | ?????????????????????????????????????????????????? | | ?????????????????????????????????????????????????? | | ?????????????????????????????????????????????????? | | ?????????????????????????????????????????????????? | | ?????????????????????????????????????????????????? | | ?????????????????????????????????????????????????? | | ?????????????????????????????????????????????????? | | ?????????????????????????????????????????????????? | | ?????????????????????#######?????????????????????? | | ????????????????????##;;#;;##????????????????????? | | ????????????????????#;;$;$;;?????????????????????? | | ????????????????????#;$& #?????????????????????? | | #????????????????????#; R;;###???????????????????? | | ##??????#?????###?####;;!@;# #???????????????????? | | #?????## ??### ?# ;*;; #???????????????????? | | ## ### ### ### ##??????????????????? | | #?# ## #??????????????????? | | #?# #??????????????????? | | #??????#### ##??????????????????? | | #####?????# #### ##???????????????????? | | "#""#####?## ##?## ###????????????????????? | | " " ##?# ##### ##??????????????????????? | | " #?# ## #???????????????????????? | | " " ### ### #??????????????????????? | | " ## ## #?# #??????????????????????? | | "## #?# ##? ?????????????????????? | | " "# #??###? ????????????????????? | | "" " #?????? ???????????????????? | | # #?????? ###### ???????????????????? | | #????? #??????????????????????????? | | #####????? ???????????????????????????? | | #?????????? ???????????????????????????? | | ###?????????????????????????????????????? | | #?????????????????????????????????????? | | ## # #????????????????????????????????? | | ?## ## ###???????????????????????????????? | | ??# #?? ## ##??????????????????????????????? | | ??## #??##### ##?????????????????????????????? | +----------------------------------------------------+ Best States ------------- Heat Dissipation 25 Energy Generation 15 Energy Capacity 250 Matter Stores 300 Matter Capacity 300 Sight Range 16 Terrain Scan Density 10 Armor Coverage 150 Evasion (%) 40 Recoil Reduction 2 Item Schematics ----------------- None Robot Schematics ------------------ M-13 Machinist | -10/Materials | Hacked Fabricated ------------ Nothing Alien Tech Used ----------------- None Achievements -------------- None Challenges ------------ None Game ------ Seed DefenseBottomlessBarrier Manual? 0 Play Time 00:15:13 Cumulative 482.7 hours Start 2024.08.19 @ 11:38:15 End 2024.08.19 @ 17:55:23 Sessions 2 Manual Loads 0 Difficulty Rogue Special Mode None Game No. 284 Rogue 284 Adventurer 0 Explorer 0 Win Type - Total 35 Types 25/2/4/1/1/0/1/1/0 Lore% 79 Gallery% 85 Achievement% 85 Wizard Run 0 Options --------- Layout 0 ASCII 0 Keyboard 1 Movement Numpad Keybinds 0 Fullscreen 2 Font 18/SmallcapsGlow Map View 76x50 Zoom Use 0% Tactical HUD 1 Map Filters NONE Filters NONE Steam 1 RUN: dcc9fd82-02f2-4f1f-be6d-9c813f7b0505